[Event "53rd Indian Junior Open-ch 2024"]
[Site "Karnal"]
[Date "2024.09.21"]
[Round "8.4"]
[White "Daksh Goyal"]
[Black "Adireddy Arjun"]
[Result "0-1"]
[ECO "A07"]
[WhiteElo "2026"]
[BlackElo "2343"]
[Annotator "RC"]
[PlyCount "109"]
[EventDate "2024.09.16"]
[EventType "swiss"]
[EventCountry "IND"]
[SourceTitle "playchess.com"]
[Source "ChessBase"]
[SourceQuality "1"]
[TimeControl "5400+30"]

1. Nf3 {[%emt 0:10:56]} d5 {[%emt 0:00:15]} 2. g3 {[%emt 0:00:05]} c6 {[%emt 0:00:05]} 3. Bg2 {[%emt 0:00:06]} Bg4 {[%emt 0:00:04]} 4. O-O {[%emt 0:00:22]} Nd7 {[%emt 0:00:04]} 5. h3 {[%emt 0:00:13]} Bh5 {[%emt 0:00:08]} 6. d4 {[%emt 0:01:27]} Ngf6 {[%emt 0:01:17]} 7. c4 {[%emt 0:00:29]} e6 {[%emt 0:04:26]} 8. cxd5 {[%emt 0:01:43]} cxd5 {[%emt 0:02:13]} 9. Ne5 {[%emt 0:05:48]} Bd6 {[%emt 0:16:16]} 10. f4 {[%emt 0:08:28]} Bg6 {[%emt 0:05:59]} 11. Nc3 {[%emt 0:05:44]} O-O {[%emt 0:01:48]} 12. Nxg6 {[%emt 0:03:49]} hxg6 {[%emt 0:00:24]} 13. e3 {[%emt 0:00:52]} Rc8 {[%emt 0:01:23]} 14. Bd2 {[%emt 0:04:28]} Nb6 {[%emt 0:14:59]} 15. b3 {[%emt 0:04:51]} Qd7 {[%emt 0:11:03]} 16. a4 {[%emt 0:14:03]} Rc6 {[%emt 0:06:10]} 17. a5 {[%emt 0:12:54]} Nc8 {[%emt 0:02:39]} 18. g4 {[%emt 0:03:40]} Bb4 {[%emt 0:13:12]} 19. Na4 {[%emt 0:04:45]} Bxd2 {[%emt 0:02:10]} 20. Qxd2 {[%emt 0:00:02]} Nd6 {[%emt 0:00:19]} 21. Nc5 {[%emt 0:00:24]} Qe7 {[%emt 0:01:09]} 22. g5 {[%emt 0:03:05]} Nd7 {[%emt 0:07:12]} 23. Nd3 {[%emt 0:02:51]} Rfc8 {[%emt 0:02:43]} 24. Rfc1 {[%emt 0:02:08]} Nf5 {[%emt 0:00:14]} 25. Bf3 {[%emt 0:01:04]} Qd8 {[%emt 0:02:42]} 26. Be2 {[%emt 0:03:16]} Nd6 {[%emt 0:04:02]} 27. Rxc6 {[%emt 0:01:15]} Rxc6 {[%emt 0:00:01]} 28. Nb4 {[%emt 0:01:54]} Rc8 {[%emt 0:00:42]} 29. a6 {[%emt 0:00:01]} Ne4 {[%emt 0:00:48]} 30. Qe1 {[%emt 0:00:01]} b6 {[%emt 0:00:30]} 31. Bd3 {[%emt 0:00:51]} Qc7 {[%emt 0:00:31]} 32. Bxe4 {[%emt 0:00:28]} dxe4 {[%emt 0:00:01]} 33. Ra2 {[%emt 0:00:13]} Qd6 {[%emt 0:00:57]} 34. Rc2 {[%emt 0:01:14]} Rxc2 {[%emt 0:00:22]} 35. Nxc2 {[%emt 0:00:01]} Nb8 {[%emt 0:00:38]} 36. Qc3 {[%emt 0:00:33]} Qd7 {[%emt 0:00:32]} 37. Nb4 {[%emt 0:00:33]} e5 {[%emt 0:00:30]} 38. fxe5 {[%emt 0:01:09]} Qxh3 {[%emt 0:00:06]} 39. d5 {[%emt 0:00:20]} Nd7 {[%emt 0:00:54]} 40. e6 {[%emt 0:02:55]} fxe6 {[%emt 0:00:30]} 41. Qc8+ {[%emt 0:00:06]} Nf8 {[%emt 0:00:24]} 42. dxe6 {[%emt 0:00:36]} Qxe3+ {[%emt 0:00:30]} 43. Kf1 {[%emt 0:00:03]} Qf3+ {[%emt 0:00:35]} 44. Ke1 {[%emt 0:00:15]} Qxb3 {[%emt 0:00:29]} 45. Nc6 {[%emt 0:00:24]} Qc3+ {[%emt 0:00:32]} 46. Kd1 {[%emt 0:00:22]} Qd3+ {[%emt 0:00:26]} 47. Kc1 {[%emt 0:00:04]} Qc4+ {[%emt 0:00:34]} 48. Kd1 {[%emt 0:00:01]} Qxe6 {[%emt 0:00:30]} 49. Nxa7 {[%emt 0:00:01]} Qb3+ {[%emt 0:00:26]} 50. Kc1 {[%emt 0:00:19]} e3 {[%emt 0:00:21]} 51. Qe8 {[%emt 0:02:48]} Qc3+ {[%emt 0:00:22]} 52. Kb1 {[%emt 0:00:01]} Qd3+ {[%emt 0:00:00]} 53. Kb2 {[%emt 0:00:03]} e2 {[%emt 0:00:36]} 54. Nc6 {[%emt 0:01:18]} Qd2+ {[%emt 0:00:17]} 55. Kb3 {[%emt 0:00:03]} 0-1

[Event "53rd Indian Junior Open-ch 2024"]
[Site "Karnal"]
[Date "2024.09.21"]
[Round "8.5"]
[White "Nagarkatte Vedant"]
[Black "Jaiveer Mahendru"]
[Result "0-1"]
[ECO "C85"]
[WhiteElo "2260"]
[BlackElo "2246"]
[Annotator "RC"]
[PlyCount "164"]
[EventDate "2024.09.16"]
[EventType "swiss"]
[EventCountry "IND"]
[SourceTitle "playchess.com"]
[Source "ChessBase"]
[SourceQuality "1"]
[TimeControl "5400+30"]

1. e4 {[%emt 0:03:25]} e5 {[%emt 0:01:15]} 2. Nf3 {[%emt 0:00:03]} Nc6 {[%emt 0:00:02]} 3. Bb5 {[%emt 0:00:05]} a6 {[%emt 0:00:02]} 4. Ba4 {[%emt 0:00:03]} Nf6 {[%emt 0:00:02]} 5. O-O {[%emt 0:00:06]} Be7 {[%emt 0:00:01]} 6. Bxc6 {[%emt 0:00:18]} dxc6 {[%emt 0:00:04]} 7. d3 {[%emt 0:00:02]} Nd7 {[%emt 0:00:03]} 8. Nbd2 {[%emt 0:00:20]} f6 {[%emt 0:00:04]} 9. Nh4 {[%emt 0:01:25]} O-O {[%emt 0:03:22]} 10. Nf5 {[%emt 0:00:07]} Nc5 {[%emt 0:02:36]} 11. Nxe7+ {[%emt 0:01:16]} Qxe7 {[%emt 0:00:04]} 12. Nc4 {[%emt 0:02:01]} Rd8 {[%emt 0:06:30]} 13. Qf3 {[%emt 0:00:15]} Ne6 {[%emt 0:02:17]} 14. Be3 {[%emt 0:05:18]} Nd4 {[%emt 0:01:23]} 15. Bxd4 {[%emt 0:00:19]} Rxd4 {[%emt 0:00:07]} 16. Qg3 {[%emt 0:02:37]} Be6 {[%emt 0:12:19]} 17. Ne3 {[%emt 0:00:20]} Rad8 {[%emt 0:03:14]} 18. f4 {[%emt 0:02:19]} exf4 {[%emt 0:06:53]} 19. Rxf4 {[%emt 0:00:25]} c5 {[%emt 0:00:09]} 20. h4 {[%emt 0:14:53]} Qd6 {[%emt 0:32:21]} 21. Raf1 {[%emt 0:12:24]} c4 {[%emt 0:01:15]} 22. dxc4 {[%emt 0:00:53]} Qe5 {[%emt 0:04:56]} 23. Qf3 {[%emt 0:29:33]} Bxc4 {[%emt 0:01:01]} 24. Ng4 {[%emt 0:01:30]} Qd6 {[%emt 0:06:58]} 25. Rf2 {[%emt 0:04:39]} Re8 {[%emt 0:10:29]} 26. Ne3 {[%emt 0:07:01]} Qc6 {[%emt 0:02:27]} 27. Qg3 {[%emt 0:10:01]} Rdxe4 {[%emt 0:03:08]} 28. Nf5 {[%emt 0:00:07]} g6 {[%emt 0:00:17]} 29. Nh6+ {[%emt 0:01:06]} Kg7 {[%emt 0:00:00]} 30. Rxf6 {[%emt 0:00:01]} Qxf6 {[%emt 0:01:25]} 31. Rxf6 {[%emt 0:00:01]} Kxf6 {[%emt 0:00:01]} 32. Ng4+ {[%emt 0:02:00]} Ke6 {[%emt 0:00:46]} 33. Qf3 {[%emt 0:01:07]} Bd5 {[%emt 0:00:00]} 34. Kh2 {[%emt 0:00:53]} Re7 {[%emt 0:00:52]} 35. Qg3 {[%emt 0:00:31]} Rf7 {[%emt 0:00:27]} 36. Nf2 {[%emt 0:00:01]} Re5 {[%emt 0:00:53]} 37. Nd3 {[%emt 0:00:08]} Ref5 {[%emt 0:00:01]} 38. Nc5+ {[%emt 0:00:46]} Kf6 {[%emt 0:00:01]} 39. Qc3+ {[%emt 0:01:04]} Ke7 {[%emt 0:00:00]} 40. Nd3 {[%emt 0:00:13]} c6 {[%emt 0:01:06]} 41. Qc5+ {[%emt 0:00:48]} Ke8 {[%emt 0:01:12]} 42. Qd6 {[%emt 0:00:33]} Re7 {[%emt 0:00:49]} 43. Qb8+ {[%emt 0:00:20]} Kf7 {[%emt 0:00:07]} 44. Qh8 {[%emt 0:00:28]} h5 {[%emt 0:00:48]} 45. Qh7+ {[%emt 0:00:19]} Kf6 {[%emt 0:00:04]} 46. Qh8+ {[%emt 0:00:03]} Kf7 {[%emt 0:00:41]} 47. Qh7+ {[%emt 0:00:01]} Kf8 {[%emt 0:00:52]} 48. Qxg6 {[%emt 0:00:27]} Ref7 {[%emt 0:00:16]} 49. Qd6+ {[%emt 0:01:36]} Kg8 {[%emt 0:00:28]} 50. c4 {[%emt 0:00:44]} Bxc4 {[%emt 0:00:45]} 51. Ne5 {[%emt 0:00:28]} R7f6 {[%emt 0:00:27]} 52. Qd8+ {[%emt 0:00:27]} Rf8 {[%emt 0:00:01]} 53. Qd6 {[%emt 0:00:30]} R8f6 {[%emt 0:00:51]} 54. Qd8+ {[%emt 0:00:30]} Rf8 {[%emt 0:00:02]} 55. Qe7 {[%emt 0:00:31]} Bd5 {[%emt 0:00:16]} 56. Nd7 {[%emt 0:00:31]} R8f7 {[%emt 0:00:40]} 57. Qe8+ {[%emt 0:00:16]} Kh7 {[%emt 0:00:29]} 58. Nb6 {[%emt 0:00:31]} Bxa2 {[%emt 0:00:59]} 59. b3 {[%emt 0:00:22]} Bxb3 {[%emt 0:00:34]} 60. Qe3 {[%emt 0:00:29]} Bd5 {[%emt 0:00:17]} 61. Nxd5 {[%emt 0:00:10]} Rxd5 {[%emt 0:00:26]} 62. Qe4+ {[%emt 0:00:12]} Kg7 {[%emt 0:00:06]} 63. Qe3 {[%emt 0:00:10]} a5 {[%emt 0:00:07]} 64. Qc3+ {[%emt 0:00:15]} Kg8 {[%emt 0:00:14]} 65. Qg3+ {[%emt 0:00:39]} Kh7 {[%emt 0:00:02]} 66. Qc3 {[%emt 0:00:12]} Kg6 {[%emt 0:00:33]} 67. Qh8 {[%emt 0:01:57]} Rg7 {[%emt 0:00:14]} 68. g4 {[%emt 0:00:49]} hxg4 {[%emt 0:00:05]} 69. Kg3 {[%emt 0:00:03]} Rf5 {[%emt 0:02:51]} 70. Qe8+ {[%emt 0:00:44]} Rgf7 {[%emt 0:00:40]} 71. Kxg4 {[%emt 0:00:32]} Kh7 {[%emt 0:00:23]} 72. Qe4 {[%emt 0:00:38]} a4 {[%emt 0:00:04]} 73. h5 {[%emt 0:00:34]} a3 {[%emt 0:00:05]} 74. Qe6 {[%emt 0:00:27]} R5f6 {[%emt 0:00:22]} 75. Qe4+ {[%emt 0:00:25]} Kh6 {[%emt 0:00:08]} 76. Qe8 {[%emt 0:00:34]} Rf4+ {[%emt 0:00:16]} 77. Kg3 {[%emt 0:00:06]} Rf3+ {[%emt 0:00:03]} 78. Kg2 {[%emt 0:00:04]} Kxh5 {[%emt 0:02:02]} 79. Qh8+ {[%emt 0:00:52]} Kg6 {[%emt 0:00:05]} 80. Qg8+ {[%emt 0:00:08]} Rg7 {[%emt 0:00:08]} 81. Qa8 {[%emt 0:01:16]} Rf6 {[%emt 0:00:06]} 82. Qe8+ {[%emt 0:00:14]} Kh7+ {[%emt 0:00:04]} 0-1

[Event "53rd Indian Junior Open-ch 2024"]
[Site "Karnal"]
[Date "2024.09.21"]
[Round "8.6"]
[White "Aniruddh Chatterjee"]
[Black "Guru Prakash, A.."]
[Result "1/2-1/2"]
[ECO "E61"]
[WhiteElo "2171"]
[BlackElo "1870"]
[Annotator "RC"]
[PlyCount "204"]
[EventDate "2024.09.16"]
[EventType "swiss"]
[EventCountry "IND"]
[SourceTitle "playchess.com"]
[Source "ChessBase"]
[SourceQuality "1"]
[TimeControl "5400+30"]

1. d4 {[%emt 0:01:42]} Nf6 {[%emt 0:00:10]} 2. c4 {[%emt 0:00:04]} g6 {[%emt 0:00:11]} 3. Nc3 {[%emt 0:00:03]} Bg7 {[%emt 0:00:09]} 4. Bg5 {[%emt 0:00:03]} O-O {[%emt 0:00:38]} 5. e3 {[%emt 0:00:04]} c5 {[%emt 0:00:18]} 6. Nf3 {[%emt 0:00:12]} cxd4 {[%emt 0:00:42]} 7. Nxd4 {[%emt 0:00:08]} Nc6 {[%emt 0:00:39]} 8. Be2 {[%emt 0:01:38]} Qa5 {[%emt 0:05:37]} 9. Bxf6 {[%emt 0:00:24]} Bxf6 {[%emt 0:00:08]} 10. O-O {[%emt 0:00:06]} Nxd4 {[%emt 0:02:56]} 11. exd4 {[%emt 0:00:06]} Qb6 {[%emt 0:00:05]} 12. c5 {[%emt 0:24:20]} Qxb2 {[%emt 0:22:55]} 13. Nb5 {[%emt 0:11:10]} Qb4 {[%emt 0:01:48]} 14. Qd3 {[%emt 0:03:15]} Qa5 {[%emt 0:05:25]} 15. Rac1 {[%emt 0:12:53]} a6 {[%emt 0:10:10]} 16. Nc3 {[%emt 0:00:19]} d6 {[%emt 0:10:12]} 17. Nd5 {[%emt 0:02:47]} Be6 {[%emt 0:09:46]} 18. Nxf6+ {[%emt 0:07:46]} exf6 {[%emt 0:00:06]} 19. d5 {[%emt 0:02:13]} Bf5 {[%emt 0:01:05]} 20. Qb3 {[%emt 0:00:01]} dxc5 {[%emt 0:02:32]} 21. Qxb7 {[%emt 0:02:33]} Rfe8 {[%emt 0:08:27]} 22. Bc4 {[%emt 0:02:24]} Rad8 {[%emt 0:02:22]} 23. d6 {[%emt 0:03:07]} Be6 {[%emt 0:07:10]} 24. Bxe6 {[%emt 0:01:14]} Rxe6 {[%emt 0:01:22]} 25. Qc7 {[%emt 0:00:53]} Qxc7 {[%emt 0:00:03]} 26. dxc7 {[%emt 0:00:03]} Rc8 {[%emt 0:00:29]} 27. Rxc5 {[%emt 0:00:01]} Kf8 {[%emt 0:00:22]} 28. Rfc1 {[%emt 0:01:59]} Ke7 {[%emt 0:01:42]} 29. g3 {[%emt 0:00:08]} Rb6 {[%emt 0:01:59]} 30. Rc6 {[%emt 0:05:19]} Rxc6 {[%emt 0:02:19]} 31. Rxc6 {[%emt 0:00:01]} f5 {[%emt 0:00:07]} 32. h4 {[%emt 0:01:15]} Kd7 {[%emt 0:00:11]} 33. Rxa6 {[%emt 0:00:21]} Rxc7 {[%emt 0:00:04]} 34. Kg2 {[%emt 0:00:09]} Rc3 {[%emt 0:00:42]} 35. a4 {[%emt 0:00:21]} Ra3 {[%emt 0:01:09]} 36. a5 {[%emt 0:00:32]} Ke7 {[%emt 0:03:23]} 37. h5 {[%emt 0:00:22]} gxh5 {[%emt 0:00:15]} 38. Ra8 {[%emt 0:00:12]} f4 {[%emt 0:00:19]} 39. gxf4 {[%emt 0:00:09]} Kf6 {[%emt 0:00:04]} 40. a6 {[%emt 0:00:10]} Kf5 {[%emt 0:00:14]} 41. Rf8 {[%emt 0:02:11]} f6 {[%emt 0:00:49]} 42. Rf7 {[%emt 0:00:07]} Rxa6 {[%emt 0:00:11]} 43. Rxh7 {[%emt 0:00:05]} Kxf4 {[%emt 0:00:12]} 44. Rxh5 {[%emt 0:00:01]} Kg4 {[%emt 0:00:08]} 45. Rh6 {[%emt 0:00:06]} Kg5 {[%emt 0:00:05]} 46. Rh8 {[%emt 0:00:04]} Kf5 {[%emt 0:00:09]} 47. Kg3 {[%emt 0:00:08]} Ra1 {[%emt 0:00:18]} 48. Rh5+ {[%emt 0:00:06]} Kg6 {[%emt 0:00:05]} 49. Rb5 {[%emt 0:00:01]} Rg1+ {[%emt 0:00:08]} 50. Kf4 {[%emt 0:00:01]} Rg5 {[%emt 0:01:37]} 51. Rb3 {[%emt 0:00:57]} Rf5+ {[%emt 0:00:05]} 52. Kg3 {[%emt 0:00:02]} Rg5+ {[%emt 0:00:04]} 53. Kf3 {[%emt 0:00:04]} Rf5+ {[%emt 0:00:04]} 54. Kg2 {[%emt 0:00:03]} Rg5+ {[%emt 0:00:04]} 55. Kf1 {[%emt 0:00:01]} Ra5 {[%emt 0:00:26]} 56. Rg3+ {[%emt 0:00:12]} Rg5 {[%emt 0:00:05]} 57. Re3 {[%emt 0:00:01]} Re5 {[%emt 0:00:07]} 58. Rd3 {[%emt 0:00:06]} Ra5 {[%emt 0:00:06]} 59. Rd2 {[%emt 0:00:28]} Rf5 {[%emt 0:00:33]} 60. Rb2 {[%emt 0:00:36]} Kh6 {[%emt 0:01:23]} 61. Kg2 {[%emt 0:00:13]} Rg5+ {[%emt 0:00:06]} 62. Kf3 {[%emt 0:00:08]} Kg6 {[%emt 0:00:04]} 63. Ke2 {[%emt 0:02:18]} Re5+ {[%emt 0:00:06]} 64. Kf1 {[%emt 0:00:01]} Rf5 {[%emt 0:00:07]} 65. Ra2 {[%emt 0:00:04]} Kh6 {[%emt 0:00:04]} 66. Ra3 {[%emt 0:00:16]} Rb5 {[%emt 0:00:21]} 67. Kg2 {[%emt 0:01:21]} Rg5+ {[%emt 0:00:09]} 68. Kh3 {[%emt 0:00:01]} Rb5 {[%emt 0:00:28]} 69. Kg4 {[%emt 0:00:14]} Kg6 {[%emt 0:00:10]} 70. f4 {[%emt 0:00:52]} Rb4 {[%emt 0:00:09]} 71. Ra6 {[%emt 0:00:13]} Rc4 {[%emt 0:00:06]} 72. Ra5 {[%emt 0:00:26]} Rb4 {[%emt 0:00:07]} 73. Ra8 {[%emt 0:01:05]} f5+ {[%emt 0:00:19]} 74. Kg3 {[%emt 0:00:01]} Rb3+ {[%emt 0:00:06]} 75. Kh4 {[%emt 0:00:07]} Rb6 {[%emt 0:00:31]} 76. Rc8 {[%emt 0:00:37]} Ra6 {[%emt 0:00:14]} 77. Rg8+ {[%emt 0:00:18]} Kh6 {[%emt 0:00:35]} 78. Rg5 {[%emt 0:00:12]} Ra5 {[%emt 0:00:32]} 79. Kg3 {[%emt 0:00:16]} Rb5 {[%emt 0:01:47]} 80. Kf3 {[%emt 0:00:08]} Ra5 {[%emt 0:00:50]} 81. Ke2 {[%emt 0:00:42]} Rd5 {[%emt 0:01:03]} 82. Ke3 {[%emt 0:00:05]} Kh7 {[%emt 0:00:03]} 83. Rg2 {[%emt 0:00:34]} Kh6 {[%emt 0:00:08]} 84. Rg8 {[%emt 0:00:30]} Kh7 {[%emt 0:00:20]} 85. Re8 {[%emt 0:00:13]} Kg6 {[%emt 0:00:15]} 86. Re6+ {[%emt 0:00:01]} Kf7 {[%emt 0:00:21]} 87. Rb6 {[%emt 0:00:09]} Kg7 {[%emt 0:00:10]} 88. Ke2 {[%emt 0:01:04]} Kf7 {[%emt 0:02:00]} 89. Rh6 {[%emt 0:00:15]} Kg7 {[%emt 0:00:19]} 90. Rc6 {[%emt 0:00:29]} Kf7 {[%emt 0:00:06]} 91. Kf2 {[%emt 0:00:06]} Rd3 {[%emt 0:00:10]} 92. Rc5 {[%emt 0:00:14]} Kf6 {[%emt 0:00:05]} 93. Re5 {[%emt 0:00:05]} Ra3 {[%emt 0:00:28]} 94. Rb5 {[%emt 0:00:23]} Kg6 {[%emt 0:00:41]} 95. Rd5 {[%emt 0:00:33]} Rb3 {[%emt 0:00:04]} 96. Rd8 {[%emt 0:00:44]} Ra3 {[%emt 0:00:09]} 97. Kg2 {[%emt 0:00:16]} Rb3 {[%emt 0:00:07]} 98. Rg8+ {[%emt 0:00:19]} Kf6 {[%emt 0:00:05]} 99. Rf8+ {[%emt 0:00:26]} Kg6 {[%emt 0:00:05]} 100. Rg8+ {[%emt 0:00:19]} Kf6 {[%emt 0:00:05]} 101. Rg3 {[%emt 0:00:10]} Rxg3+ {[%emt 0:00:08]} 102. Kxg3 {[%emt 0:00:01]} Kg7 {[%emt 0:00:07]} 1/2-1/2

[Event "53rd Indian Junior Open-ch 2024"]
[Site "Karnal"]
[Date "2024.09.21"]
[Round "8.7"]
[White "Sri Charan Sandipagu"]
[Black "Sharnarthi Viresh"]
[Result "1-0"]
[ECO "E94"]
[WhiteElo "1964"]
[BlackElo "2147"]
[Annotator "RC"]
[PlyCount "113"]
[EventDate "2024.09.16"]
[EventType "swiss"]
[EventCountry "IND"]
[SourceTitle "playchess.com"]
[Source "ChessBase"]
[SourceQuality "1"]
[TimeControl "5400+30"]

1. d4 {[%emt 0:00:06]} Nf6 {[%emt 0:05:34]} 2. c4 {[%emt 0:00:03]} g6 {[%emt 0:00:04]} 3. Nc3 {[%emt 0:00:06]} Bg7 {[%emt 0:00:06]} 4. e4 {[%emt 0:00:06]} d6 {[%emt 0:00:03]} 5. Be2 {[%emt 0:00:05]} O-O {[%emt 0:00:20]} 6. Be3 {[%emt 0:00:04]} Nbd7 {[%emt 0:00:17]} 7. Nf3 {[%emt 0:09:08]} e5 {[%emt 0:00:34]} 8. O-O {[%emt 0:02:28]} h6 {[%emt 0:02:20]} 9. h3 {[%emt 0:04:17]} c6 {[%emt 0:01:54]} 10. d5 {[%emt 0:01:26]} c5 {[%emt 0:02:12]} 11. Nd2 {[%emt 0:04:01]} a6 {[%emt 0:03:25]} 12. a3 {[%emt 0:02:07]} b6 {[%emt 0:00:30]} 13. b4 {[%emt 0:00:29]} Ne8 {[%emt 0:00:07]} 14. Rc1 {[%emt 0:10:01]} Ra7 {[%emt 0:04:15]} 15. Kh1 {[%emt 0:04:06]} Nb8 {[%emt 0:06:14]} 16. Bd3 {[%emt 0:04:55]} Re7 {[%emt 0:02:49]} 17. g4 {[%emt 0:04:05]} f5 {[%emt 0:24:15]} 18. exf5 {[%emt 0:00:15]} gxf5 {[%emt 0:04:00]} 19. Bxf5 {[%emt 0:00:12]} Bxf5 {[%emt 0:01:31]} 20. gxf5 {[%emt 0:00:03]} Rxf5 {[%emt 0:00:43]} 21. Qg4 {[%emt 0:02:53]} Qd7 {[%emt 0:04:57]} 22. Nce4 {[%emt 0:01:21]} Kf8 {[%emt 0:00:57]} 23. Rg1 {[%emt 0:05:46]} Ref7 {[%emt 0:00:02]} 24. Ng3 {[%emt 0:00:41]} h5 {[%emt 0:18:17]} 25. Nxh5 {[%emt 0:00:25]} Rxh5 {[%emt 0:00:03]} 26. Qxh5 {[%emt 0:00:45]} Rf5 {[%emt 0:00:02]} 27. Qh4 {[%emt 0:01:47]} Qf7 {[%emt 0:06:16]} 28. Rg5 {[%emt 0:02:34]} Nd7 {[%emt 0:00:42]} 29. Rxf5 {[%emt 0:00:40]} Qxf5 {[%emt 0:00:02]} 30. Qg4 {[%emt 0:00:28]} Qxg4 {[%emt 0:00:05]} 31. hxg4 {[%emt 0:00:04]} Ke7 {[%emt 0:07:01]} 32. Ne4 {[%emt 0:00:21]} Nef6 {[%emt 0:02:49]} 33. Bg5 {[%emt 0:00:14]} Bh6 {[%emt 0:00:05]} 34. Bxf6+ {[%emt 0:01:00]} Nxf6 {[%emt 0:00:06]} 35. g5 {[%emt 0:00:04]} Nxe4 {[%emt 0:00:06]} 36. gxh6 {[%emt 0:00:04]} Nf6 {[%emt 0:00:10]} 37. Rg1 {[%emt 0:00:10]} b5 {[%emt 0:00:05]} 38. h7 {[%emt 0:00:35]} Nxh7 {[%emt 0:00:02]} 39. Rg7+ {[%emt 0:00:05]} Kf6 {[%emt 0:00:06]} 40. Rxh7 {[%emt 0:00:06]} bxc4 {[%emt 0:00:03]} 41. bxc5 {[%emt 0:00:18]} c3 {[%emt 0:00:15]} 42. Rh3 {[%emt 0:00:11]} dxc5 {[%emt 0:00:03]} 43. Rxc3 {[%emt 0:00:06]} e4 {[%emt 0:00:02]} 44. Rxc5 {[%emt 0:00:06]} Ke5 {[%emt 0:00:02]} 45. Ra5 {[%emt 0:00:07]} Kd6 {[%emt 0:00:06]} 46. Rxa6+ {[%emt 0:00:05]} Kxd5 {[%emt 0:00:04]} 47. Rb6 {[%emt 0:00:09]} e3 {[%emt 0:00:03]} 48. fxe3 {[%emt 0:00:06]} Ke4 {[%emt 0:00:02]} 49. Rb3 {[%emt 0:00:08]} Kf3 {[%emt 0:00:02]} 50. a4 {[%emt 0:00:06]} Ke4 {[%emt 0:00:02]} 51. a5 {[%emt 0:00:06]} Kf3 {[%emt 0:00:03]} 52. a6 {[%emt 0:00:06]} Kg3 {[%emt 0:00:05]} 53. a7 {[%emt 0:00:05]} Kf2 {[%emt 0:00:02]} 54. a8=Q {[%emt 0:00:09]} Ke2 {[%emt 0:00:04]} 55. e4 {[%emt 0:00:07]} Kd2 {[%emt 0:00:03]} 56. Qa2+ {[%emt 0:00:05]} Kc1 {[%emt 0:00:01]} 57. Rb1# {[%emt 0:00:07]} 1-0

[Event "53rd Indian Junior Open-ch 2024"]
[Site "Karnal"]
[Date "2024.09.21"]
[Round "8.8"]
[White "Shadhursshaan R"]
[Black "Kushal O"]
[Result "1/2-1/2"]
[ECO "E91"]
[WhiteElo "1933"]
[BlackElo "2130"]
[Annotator "RC"]
[PlyCount "32"]
[EventDate "2024.09.16"]
[EventType "swiss"]
[EventCountry "IND"]
[SourceTitle "playchess.com"]
[Source "ChessBase"]
[SourceQuality "1"]
[TimeControl "5400+30"]

1. d4 {[%emt 0:02:39]} Nf6 {[%emt 0:07:04]} 2. c4 {[%emt 0:00:12]} c5 {[%emt 0:00:01]} 3. d5 {[%emt 0:00:08]} g6 {[%emt 0:00:04]} 4. Nc3 {[%emt 0:00:15]} Bg7 {[%emt 0:00:05]} 5. e4 {[%emt 0:00:29]} d6 {[%emt 0:00:02]} 6. Be2 {[%emt 0:02:06]} e6 {[%emt 0:00:05]} 7. dxe6 {[%emt 0:04:37]} Bxe6 {[%emt 0:02:49]} 8. Bf4 {[%emt 0:02:57]} Nc6 {[%emt 0:06:16]} 9. Nf3 {[%emt 0:18:21]} O-O {[%emt 0:02:26]} 10. Bxd6 {[%emt 0:03:17]} Re8 {[%emt 0:03:37]} 11. O-O {[%emt 0:01:45]} Qa5 {[%emt 0:03:39]} 12. a3 {[%emt 0:06:03]} Nd7 {[%emt 0:14:46]} 13. Rb1 {[%emt 0:12:35]} Rad8 {[%emt 0:00:08]} 14. Ra1 {[%emt 0:00:07]} Ra8 {[%emt 0:00:03]} 15. Rb1 {[%emt 0:00:03]} Rad8 {[%emt 0:00:05]} 16. Ra1 {[%emt 0:00:06]} Ra8 {[%emt 0:57:20]} 1/2-1/2